bitfinex/quotes_BTCUSD_20250916
["timestamp","ask_amount","ask_price","bid_price","bid_amount"]
[1757990251880,3.93397663,115390.0,115380.0,0.00014137]
[1757990252412,3.93397663,115390.0,115380.0,0.00320137]
[1757990252875,3.93397663,115390.0,115380.0,0.00014137]
[1757990253315,3.93397663,115390.0,115380.0,0.00320137]
[1757990253316,3.76598663,115390.0,115380.0,0.00320137]
[1757990253638,3.76598663,115390.0,115380.0,0.02827137]
[1757990253639,3.42122563,115390.0,115380.0,0.02827137]
[1757990253841,3.06633253,115390.0,115380.0,0.02827137]
[1757990254483,3.07992736,115390.0,115380.0,0.02827137]
[1757990254705,3.08190736,115390.0,115380.0,0.02827137]
[1757990254920,3.43680046,115390.0,115380.0,0.02827137]
[1757990255060,3.43482046,115390.0,115380.0,0.02827137]
[1757990255478,3.43680046,115390.0,115380.0,0.02827137]
[1757990256718,3.29058046,115390.0,115380.0,0.02827137]
[1757990256925,3.43482046,115390.0,115380.0,0.02827137]
[1757990258706,3.43680046,115390.0,115380.0,0.02827137]
[1757990259966,3.43680046,115390.0,115380.0,0.02611137]
[1757990263158,3.43680046,115390.0,115380.0,0.02827137]
[1757990263720,3.43482046,115390.0,115380.0,0.02827137]
[1757990264543,3.29058046,115390.0,115380.0,0.02827137]
[1757990264741,3.43494046,115390.0,115380.0,0.02827137]
[1757990266191,3.43692046,115390.0,115380.0,0.02827137]
[1757990267750,3.08202736,115390.0,115380.0,0.02827137]
[1757990269146,3.08004736,115390.0,115380.0,0.02827137]
[1757990269924,3.08202736,115390.0,115380.0,0.02827137]
[1757990270511,3.08202736,115390.0,115380.0,0.00014137]
[1757990270764,3.10650736,115390.0,115380.0,0.00014137]
[1757990271848,3.10657121,115390.0,115380.0,0.00014137]
[1757990274224,3.13257862,115390.0,115380.0,0.00014137]
[1757990278035,2.42279242,115390.0,115380.0,0.00531137]
[1757990278252,3.10657121,115390.0,115380.0,0.00334137]
[1757990278454,3.08209121,115390.0,115380.0,0.00334137]
[1757990278691,3.08209121,115390.0,115380.0,0.02794137]
[1757990280203,3.08209121,115390.0,115380.0,0.02780137]
[1757990280895,3.10487121,115390.0,115380.0,0.00014137]
[1757990281128,3.51250122,115390.0,115380.0,0.00014137]
[1757990281355,3.64893538,115390.0,115380.0,0.00014137]
[1757990281576,3.58534055,115390.0,115380.0,0.00014137]
[1757990281792,3.60988105,115390.0,115380.0,1e-08]
[1757990282000,0.51338534,115350.0,115330.0,0.06963196]
[1757990282225,0.86827844,115350.0,115340.0,0.00204]
[1757990282471,1.03892585,115350.0,115340.0,0.00204]
[1757990282702,1.06509849,115350.0,115340.0,0.02892]
[1757990283368,1.41999159,115350.0,115340.0,0.02892]
[1757990283831,1.42860538,115350.0,115340.0,0.02892]
[1757990284063,1.92860538,115350.0,115340.0,0.02892]
[1757990284455,1.92860538,115350.0,115340.0,0.03092]
[1757990284673,1.92860538,115350.0,115340.0,0.02892]
[1757990284884,1.92860538,115350.0,115340.0,0.02992]
[1757990286225,1.75795797,115350.0,115340.0,0.02992]
[1757990286415,1.90255797,115350.0,115340.0,0.02992]
[1757990286625,1.75795797,115350.0,115340.0,0.02992]
[1757990286947,1.90255797,115350.0,115340.0,0.02992]
[1757990288694,1.54766487,115350.0,115340.0,0.20332038]
[1757990290707,1.04766487,115350.0,115340.0,0.20332038]
[1757990291622,1.40255797,115350.0,115340.0,0.20332038]
[1757990292335,0.87423953,115350.0,115340.0,0.20332038]
[1757990293628,1.04762487,115350.0,115340.0,0.20332038]
[1757990294344,1.04762487,115350.0,115340.0,0.02992]
[1757990294575,1.40251797,115350.0,115340.0,0.02992]
[1757990295829,1.40251797,115350.0,115340.0,0.02788]
[1757990296038,1.40251797,115350.0,115340.0,0.02992]
[1757990297136,1.39390418,115350.0,115340.0,0.02992]
[1757990299510,1.40243672,115350.0,115340.0,0.02992]
[1757990299990,0.54809052,115350.0,115340.0,0.02992]
[1757990300196,1.40243672,115350.0,115340.0,0.02992]
[1757990301049,1.40441672,115350.0,115340.0,0.02992]
[1757990301473,1.40243672,115350.0,115340.0,0.02992]
[1757990302940,1.40243672,115350.0,115340.0,0.001]
[1757990302941,1.42719672,115350.0,115340.0,0.001]
[1757990304987,1.40441672,115350.0,115340.0,0.20332038]
[1757990305196,1.08449138,115350.0,115340.0,0.20332038]
[1757990305424,1.22901138,115350.0,115340.0,0.20332038]
[1757990305860,1.08449138,115350.0,115340.0,0.20332038]
[1757990306499,1.22905138,115350.0,115340.0,0.20332038]
[1757990309476,1.22901138,115350.0,115340.0,0.20332038]
[1757990311050,1.22904228,115350.0,115340.0,0.20332038]
[1757990312392,1.08452228,115350.0,115340.0,0.20332038]
[1757990312603,1.22904228,115350.0,115340.0,0.20332038]
[1757990312820,1.40242762,115350.0,115340.0,0.20332038]
[1757990313843,1.00809453,115350.0,115340.0,0.20332038]
[1757990317229,0.83470919,115350.0,115340.0,0.20332038]
[1757990319902,0.69018919,115350.0,115340.0,0.20332038]
[1757990320114,0.83466919,115350.0,115340.0,0.2908439]
[1757990320786,0.69018919,115350.0,115340.0,0.4353239]
[1757990321006,0.37470518,115350.0,115340.0,0.4353239]
[1757990321225,0.69018919,115350.0,115340.0,0.4353239]
[1757990322103,0.35018919,115350.0,115340.0,0.4353239]
[1757990322808,0.69018919,115350.0,115340.0,0.4353239]
[1757990323018,0.69008919,115350.0,115340.0,0.4353239]
[1757990323203,0.69008919,115350.0,115340.0,0.4343239]
[1757990323417,0.69008919,115350.0,115340.0,0.4353239]
[1757990323644,0.69008919,115350.0,115340.0,0.4373239]
[1757990324525,0.69008919,115350.0,115340.0,0.2928439]
[1757990324757,0.69008919,115350.0,115340.0,0.4373239]
[1757990325206,0.69008919,115350.0,115340.0,0.4374239]
[1757990328342,0.37460518,115350.0,115340.0,0.46255048]
[1757990328580,0.69008919,115350.0,115340.0,0.46255048]
[1757990329608,0.69008919,115350.0,115340.0,0.31807048]
[1757990329814,0.69008919,115350.0,115340.0,0.46263048]
[1757990334154,0.69008919,115350.0,115340.0,0.31807048]
[1757990334364,0.69008919,115350.0,115340.0,0.46263048]
[1757990335070,0.69008919,115350.0,115340.0,0.31807048]
[1757990335541,0.69008919,115350.0,115340.0,0.46267048]
[1757990337808,0.86347453,115350.0,115340.0,0.31807048]
[1757990337987,0.86347453,115350.0,115340.0,0.46263048]
[1757990343472,0.54799052,115350.0,115340.0,0.46263048]
[1757990343675,0.86347453,115350.0,115340.0,0.46263048]
[1757990344283,0.69008919,115350.0,115340.0,0.46263048]
[1757990345366,0.69008919,115350.0,115340.0,0.46203048]
[1757990345571,0.86545453,115350.0,115340.0,0.43363048]
[1757990345774,0.89012453,115350.0,115340.0,0.2602301]
[1757990345988,0.89012453,115350.0,115340.0,0.2563221]
[1757990346194,1.03337453,115350.0,115340.0,0.2563221]
[1757990346409,1.03337453,115350.0,115340.0,0.1118421]
[1757990346626,1.03464453,115350.0,115340.0,0.23123552]
[1757990346836,1.03464453,115350.0,115340.0,0.0031]
[1757990348037,1.03337453,115350.0,115340.0,0.0031]
[1757990348977,1.04522768,115350.0,115340.0,0.0031]
[1757990348978,2.0134487,115350.0,115340.0,0.0031]
[1757990349183,1.64653768,115350.0,115340.0,0.0031]
[1757990349615,1.64653768,115350.0,115340.0,0.002]
[1757990349788,0.17340038,115340.0,115330.0,8.179e-05]
[1757990350069,0.93743249,115340.0,115330.0,8.179e-05]
[1757990350482,0.98888896,115340.0,115330.0,8.179e-05]
[1757990350926,0.98898896,115340.0,115330.0,8.179e-05]
[1757990352765,0.99025896,115340.0,115330.0,8.179e-05]
[1757990354315,0.84569896,115340.0,115330.0,8.179e-05]
[1757990354523,0.98894896,115340.0,115330.0,8.179e-05]
[1757990356109,0.99021896,115340.0,115330.0,8.179e-05]
[1757990356315,0.84442896,115340.0,115330.0,8.179e-05]
[1757990356756,0.98894896,115340.0,115330.0,8.179e-05]
[1757990359278,0.98890896,115340.0,115330.0,8.179e-05]
[1757990359893,0.84442896,115340.0,115330.0,8.179e-05]
[1757990360345,0.98890896,115340.0,115330.0,8.179e-05]
[1757990365079,0.96550896,115340.0,115330.0,8.179e-05]
[1757990365276,0.96550896,115340.0,115330.0,0.02350179]
[1757990368223,0.82102896,115340.0,115330.0,0.02648179]
[1757990368451,0.64804495,115340.0,115330.0,0.02848179]
[1757990368667,0.81904896,115340.0,115330.0,0.02848179]
[1757990369116,0.96356896,115340.0,115330.0,0.02848179]
[1757990371324,0.96554896,115340.0,115330.0,0.02848179]
[1757990371534,0.96356896,115340.0,115330.0,0.02848179]
[1757990374095,0.96554896,115340.0,115330.0,0.02848179]
[1757990375971,1.00505814,115340.0,115330.0,0.02848179]
[1757990376834,1.00505814,115340.0,115330.0,0.02350179]
[1757990377045,1.02947814,115340.0,115330.0,8.179e-05]
[1757990382656,1.38574133,115340.0,115330.0,8.179e-05]
[1757990383535,1.03074814,115340.0,115330.0,8.179e-05]
[1757990383918,1.02947814,115340.0,115330.0,8.179e-05]
[1757990393575,0.88495814,115340.0,115330.0,8.179e-05]
[1757990393727,1.02935814,115340.0,115330.0,8.179e-05]
[1757990395163,1.02930214,115340.0,115330.0,8.179e-05]
[1757990396191,0.88490214,115340.0,115330.0,8.179e-05]
[1757990396392,1.02926214,115340.0,115330.0,8.179e-05]
[1757990398371,0.86048214,115340.0,115330.0,0.00521179]
[1757990398619,1.00286214,115340.0,115330.0,0.02910179]
[1757990398853,1.35983533,115340.0,115330.0,0.02910179]
[1757990401951,1.21547533,115340.0,115330.0,0.02910179]
[1757990402189,1.35983533,115340.0,115330.0,0.02910179]
[1757990403841,1.35785533,115340.0,115330.0,0.02910179]
[1757990404307,1.21349533,115340.0,115330.0,0.02910179]
[1757990404540,1.00286214,115340.0,115330.0,0.02910179]
[1757990406358,1.35785533,115340.0,115330.0,0.02910179]
[1757990406871,1.35785533,115340.0,115330.0,0.03110179]
[1757990407511,1.38413533,115340.0,115330.0,0.00208179]
[1757990407933,1.23977533,115340.0,115330.0,0.00208179]
[1757990408084,1.38413533,115340.0,115330.0,0.00208179]
[1757990408305,1.38413533,115340.0,115330.0,0.00308179]
[1757990412789,1.35983533,115340.0,115330.0,0.03141179]
[1757990412999,1.35785533,115340.0,115330.0,0.03141179]
[1757990413821,1.35983533,115340.0,115330.0,0.03141179]
[1757990416684,1.35983533,115340.0,115330.0,0.02636179]
[1757990416899,1.38413533,115340.0,115330.0,0.00308179]
[1757990417995,1.38413533,115340.0,115330.0,0.00208179]
[1757990418178,1.38413533,115340.0,115330.0,8.179e-05]
[1757990418918,1.35983533,115340.0,115330.0,0.02636179]
[1757990422542,1.39763433,115340.0,115330.0,8.179e-05]
[1757990422725,1.42364174,115340.0,115330.0,8.179e-05]
[1757990422928,1.39763433,115340.0,115330.0,8.179e-05]
[1757990423545,1.25200433,115340.0,115330.0,8.179e-05]
[1757990423771,1.39636433,115340.0,115330.0,8.179e-05]
[1757990425354,1.25200433,115340.0,115330.0,8.179e-05]
[1757990425762,1.39636433,115340.0,115330.0,8.179e-05]
[1757990426868,1.37008433,115340.0,115330.0,0.02841179]
[1757990428264,1.37206433,115340.0,115330.0,0.02841179]
[1757990430827,1.37206433,115340.0,115330.0,8.179e-05]
[1757990431033,1.39698433,115340.0,115330.0,8.179e-05]
[1757990437837,1.31826507,115340.0,115330.0,8.179e-05]
[1757990442740,1.29136507,115340.0,115330.0,0.02623179]
[1757990442949,1.29136507,115340.0,115330.0,0.02932179]
[1757990443427,0.81914251,115340.0,115330.0,0.02932179]
[1757990443647,0.96350251,115340.0,115330.0,0.02932179]
[1757990444999,0.96548251,115340.0,115330.0,0.02932179]
[1757990445403,0.96548251,115340.0,115330.0,0.02409179]
[1757990445633,0.99040251,115340.0,115330.0,8.179e-05]
[1757990446458,1.49040251,115340.0,115330.0,8.179e-05]
[1757990449035,1.80603607,115340.0,115330.0,8.179e-05]
[1757990456867,3.52343348,115340.0,115330.0,8.179e-05]
[1757990457087,3.84889308,115340.0,115330.0,8.179e-05]
[1757990457554,4.14889308,115340.0,115330.0,8.179e-05]
[1757990457753,4.15499758,115340.0,115330.0,8.179e-05]
[1757990458321,4.15599758,115340.0,115330.0,8.179e-05]
[1757990458732,4.13053798,115340.0,115330.0,8.179e-05]
[1757990459364,4.12443348,115340.0,115330.0,8.179e-05]
[1757990459594,4.13053415,115340.0,115330.0,8.179e-05]
[1757990464187,4.14413572,115340.0,115330.0,8.179e-05]
[1757990468048,4.14286572,115340.0,115330.0,8.179e-05]
[1757990468486,4.14413572,115340.0,115330.0,8.179e-05]
[1757990469240,4.14286572,115340.0,115330.0,8.179e-05]
[1757990470326,3.99850572,115340.0,115330.0,8.179e-05]
[1757990470596,4.14286572,115340.0,115330.0,8.179e-05]
[1757990471615,4.62926415,115340.0,115330.0,8.179e-05]
[1757990472348,4.63053415,115340.0,115330.0,8.179e-05]
[1757990473179,4.64677449,115340.0,115330.0,8.179e-05]
[1757990474495,4.66037624,115340.0,115330.0,8.179e-05]
[1757990475364,4.66037623,115340.0,115330.0,8.179e-05]
[1757990476735,4.66036621,115340.0,115330.0,8.179e-05]
[1757990479606,4.65909621,115340.0,115330.0,8.179e-05]
[1757990480608,4.65910334,115340.0,115330.0,8.179e-05]
[1757990480857,4.81282844,115340.0,115330.0,8.179e-05]
[1757990481289,4.79922669,115340.0,115330.0,8.179e-05]
[1757990483993,4.71279253,115340.0,115330.0,8.179e-05]
[1757990484198,4.72512478,115340.0,115330.0,8.179e-05]
[1757990485560,4.72513311,115340.0,115330.0,8.179e-05]
[1757990485765,4.75186271,115340.0,115330.0,8.179e-05]
[1757990487837,4.60750271,115340.0,115330.0,8.179e-05]
[1757990488013,4.75059271,115340.0,115330.0,8.179e-05]
[1757990490955,4.83702687,115340.0,115330.0,8.179e-05]
[1757990492089,4.75059271,115340.0,115330.0,8.179e-05]
[1757990493711,4.60623271,115340.0,115330.0,8.179e-05]
[1757990494407,4.75059271,115340.0,115330.0,8.179e-05]
[1757990495164,4.60623271,115340.0,115330.0,8.179e-05]
[1757990495724,4.75059271,115340.0,115330.0,8.179e-05]
[1757990496824,4.60623271,115340.0,115330.0,8.179e-05]
[1757990497035,4.75059271,115340.0,115330.0,8.179e-05]
[1757990497711,4.80186271,115340.0,115330.0,8.179e-05]
[1757990497895,4.80059271,115340.0,115330.0,8.179e-05]
[1757990498523,5.23739271,115340.0,115330.0,8.179e-05]
[1757990500030,5.23739271,115340.0,115320.0,0.02735]
[1757990500031,1.5793896,115330.0,115320.0,0.02735]
[1757990500205,6.75884223,115330.0,115320.0,0.02735]
[1757990500410,6.75884223,115330.0,115320.0,0.0295]
[1757990500820,6.75894223,115330.0,115320.0,0.0295]
[1757990501211,6.78502784,115330.0,115320.0,0.0295]
[1757990502081,6.81300525,115330.0,115320.0,0.0295]
[1757990502205,6.89943941,115330.0,115320.0,0.0295]
[1757990502433,7.39943941,115330.0,115320.0,0.0295]
[1757990502639,1.41343045,115320.0,115310.0,0.02711]
[1757990502840,7.31447687,115320.0,115310.0,0.02711]
[1757990503037,7.31447687,115320.0,115310.0,0.02926]
[1757990503465,7.35416543,115320.0,115310.0,0.02926]
[1757990503693,7.25269143,115320.0,115310.0,0.02926]
[1757990504049,6.84960143,115320.0,115310.0,0.02926]
[1757990504252,6.92916443,115320.0,115310.0,0.02926]
[1757990506502,6.95517184,115320.0,115310.0,0.02926]
[1757990507142,6.95521195,115320.0,115310.0,0.02926]
[1757990508758,6.59988722,115320.0,115310.0,0.02926]
[1757990509907,5.71251322,115320.0,115310.0,0.02926]
[1757990512203,6.21251322,115320.0,115310.0,0.02926]
[1757990516310,5.97177922,115320.0,115310.0,0.02926]
[1757990516513,5.92480622,115320.0,115310.0,0.02926]
[1757990519705,5.92480904,115320.0,115310.0,0.02926]
[1757990519922,5.90905704,115320.0,115310.0,0.02926]
[1757990520410,3.86984663,115320.0,115310.0,0.02926]
[1757990522224,3.57838263,115320.0,115310.0,0.02926]
[1757990524359,3.53203663,115320.0,115310.0,0.02926]
[1757990528923,3.52592839,115320.0,115310.0,0.02926]
[1757990529160,3.53203746,115320.0,115310.0,0.02926]
[1757990530166,3.53401746,115320.0,115310.0,0.02418]
[1757990530524,3.58264487,115320.0,115310.0,0.0002]
[1757990535833,3.56002487,115320.0,115310.0,0.0002]
[1757990536065,3.56002487,115320.0,115310.0,0.02619]
[1757990537436,3.41368487,115320.0,115310.0,0.02818]
[1757990537649,3.55800487,115320.0,115310.0,0.02818]
[1757990538316,3.55998487,115320.0,115310.0,0.02818]
[1757990538523,3.55800487,115320.0,115310.0,0.02818]
[1757990538731,3.53199746,115320.0,115310.0,0.02818]
[1757990543064,3.24252446,115320.0,115310.0,0.02818]
[1757990543249,3.33999946,115320.0,115310.0,0.02818]
[1757990543989,3.21735446,115320.0,115310.0,0.02818]
[1757990544272,3.31832946,115320.0,115310.0,0.02818]
[1757990545894,3.21735446,115320.0,115310.0,0.02818]
[1757990546103,3.31832946,115320.0,115310.0,0.02818]
[1757990547687,3.21735446,115320.0,115310.0,0.02818]
[1757990548137,3.21735465,115320.0,115310.0,0.02818]
[1757990549171,3.42723652,115320.0,115310.0,0.02818]
[1757990549423,3.44352737,115320.0,115310.0,0.02818]
[1757990552886,3.41278337,115320.0,115310.0,0.02818]
[1757990553105,3.36943937,115320.0,115310.0,0.02818]
[1757990553329,2.61736437,115320.0,115310.0,0.02818]
[1757990553768,2.60376142,115320.0,115310.0,0.02818]
[1757990554234,2.60276142,115320.0,115310.0,0.02818]
[1757990555068,2.60076142,115320.0,115310.0,0.02818]
[1757990555780,2.60176142,115320.0,115310.0,0.02818]
[1757990556213,2.60076142,115320.0,115310.0,0.02818]
[1757990556681,2.61436397,115320.0,115310.0,0.02818]
[1757990557464,2.61436243,115320.0,115310.0,0.02818]
[1757990561362,2.59807158,115320.0,115310.0,0.02818]
[1757990561723,2.51886618,115320.0,115310.0,0.02818]
[1757990564820,2.52084618,115320.0,115310.0,0.02818]
[1757990567068,2.52084573,115320.0,115310.0,0.02818]
[1757990569047,2.51886573,115320.0,115310.0,0.02818]
[1757990570573,2.51886591,115320.0,115310.0,0.02818]
[1757990571009,2.21886591,115320.0,115310.0,0.02818]
[1757990571221,1.89703643,115320.0,115310.0,0.02818]
[1757990572082,1.72360598,115320.0,115310.0,0.02818]
[1757990572461,1.89703643,115320.0,115310.0,0.02818]
[1757990572887,2.21275846,115320.0,115310.0,0.02818]
[1757990576179,2.21473846,115320.0,115310.0,0.02818]
[1757990576393,2.23908846,115320.0,115310.0,0.0002]
[1757990576999,2.24519604,115320.0,115310.0,0.0002]
[1757990579890,2.22084604,115320.0,115310.0,0.02907]
[1757990580808,1.44310198,115320.0,115310.0,0.02907]
[1757990581140,2.21882604,115320.0,115310.0,0.02907]
[1757990581968,2.22080604,115320.0,115310.0,0.02907]
[1757990582203,2.22080604,115320.0,115310.0,0.02712]
[1757990583982,2.22080604,115320.0,115310.0,0.02907]
[1757990584392,2.21882604,115320.0,115310.0,0.02907]
[1757990584620,2.22080604,115320.0,115310.0,0.02907]
[1757990585228,2.22080695,115320.0,115310.0,0.02907]
[1757990585387,2.21882695,115320.0,115310.0,0.02907]
[1757990587176,2.22080695,115320.0,115310.0,0.02907]
[1757990588916,2.22080695,115320.0,115310.0,0.02394]
[1757990589326,2.24499695,115320.0,115310.0,0.0002]
[1757990591133,2.22080695,115320.0,115310.0,0.0002]
[1757990591372,2.23709623,115320.0,115310.0,0.02712]
[1757990591971,2.17037623,115320.0,115310.0,0.02712]
[1757990595614,2.17037623,115320.0,115310.0,0.08512]
[1757990596603,2.17037658,115320.0,115310.0,0.08512]
[1757990597157,2.02609658,115320.0,115310.0,0.08707]
[1757990597421,2.16839658,115320.0,115310.0,0.08707]
[1757990598052,2.02411658,115320.0,115310.0,0.08707]
[1757990598264,1.83023643,115320.0,115310.0,0.08707]
[1757990598905,2.14595846,115320.0,115310.0,0.08707]
[1757990600376,1.64595846,115320.0,115310.0,0.08707]
[1757990602692,1.33023643,115320.0,115310.0,0.08707]
[1757990603282,1.64595846,115320.0,115310.0,0.08707]
[1757990613231,1.64793846,115320.0,115310.0,0.08707]
[1757990621865,1.72692452,115320.0,115310.0,0.08707]
[1757990623660,1.72692452,115320.0,115310.0,0.08512]
[1757990623837,1.72692452,115320.0,115310.0,0.0871]
[1757990628003,1.58070452,115320.0,115310.0,0.0871]
[1757990628214,1.72494452,115320.0,115310.0,0.0871]
[1757990634376,1.72692452,115320.0,115310.0,0.0871]
[1757990642247,1.56772363,115320.0,115310.0,0.0871]
[1757990642463,1.21412108,115320.0,115310.0,0.26054549]
[1757990642669,1.35832108,115320.0,115310.0,0.26054549]
[1757990642877,1.38069063,115320.0,115310.0,0.26054549]
[1757990643094,1.55412108,115320.0,115310.0,0.0871]
[1757990643809,1.55412108,115320.0,115310.0,0.26054549]
[1757990650813,1.38069063,115320.0,115310.0,0.40474549]
[1757990652890,1.02547557,115320.0,115310.0,0.40474549]
[1757990653113,1.02547557,115320.0,115310.0,0.51739559]
[1757990653114,0.36618561,115320.0,115310.0,0.51739559]
[1757990653353,0.72130067,115320.0,115310.0,0.51739559]
[1757990654707,1.07651573,115320.0,115310.0,0.51735559]
[1757990655106,1.07651573,115320.0,115310.0,0.51745559]
[1757990657126,1.25197618,115320.0,115310.0,0.48855559]
[1757990657559,1.25197618,115320.0,115310.0,0.51763559]
[1757990657752,1.25197618,115320.0,115310.0,0.51564559]
[1757990658211,1.27456618,115320.0,115310.0,0.48855559]
[1757990658409,1.25197618,115320.0,115310.0,0.48855559]
[1757990658626,1.25197618,115320.0,115310.0,0.51763559]
[1757990658830,1.24994618,115320.0,115310.0,0.51763559]
[1757990659045,1.07651573,115320.0,115310.0,0.51763559]
[1757990663077,0.72130067,115320.0,115310.0,0.51763559]
[1757990669190,0.36608561,115320.0,115310.0,0.51763559]
[1757990669440,0.72130067,115320.0,115310.0,0.51763559]
[1757990672659,0.36608561,115320.0,115310.0,0.51763559]
[1757990672867,0.72130067,115320.0,115310.0,0.51763559]
[1757990673938,0.69521506,115320.0,115310.0,0.51763559]
[1757990681473,0.34,115320.0,115310.0,0.51763559]
[1757990681696,0.69521506,115320.0,115310.0,0.51763559]
[1757990681902,0.65559213,115320.0,115310.0,0.51763559]
[1757990685619,0.65559213,115320.0,115310.0,0.37347559]
[1757990685847,0.68173213,115320.0,115310.0,0.48851559]
[1757990686261,0.65757213,115320.0,115310.0,0.48851559]
[1757990686487,0.65757213,115320.0,115310.0,0.51535559]
[1757990688336,0.65757213,115320.0,115310.0,0.51732559]
[1757990697380,0.65757213,115320.0,115310.0,0.51535559]
[1757990697578,0.65757213,115320.0,115310.0,0.51740559]
[1757990699896,0.65559213,115320.0,115310.0,0.51740559]
[1757990700932,0.34,115320.0,115310.0,0.51740559]
[1757990701144,0.65559213,115320.0,115310.0,0.51740559]
[1757990701777,0.34,115320.0,115310.0,0.51740559]
[1757990704114,0.65559213,115320.0,115310.0,0.51740559]
[1757990707775,0.34,115320.0,115310.0,0.51740559]
[1757990707995,0.65559213,115320.0,115310.0,0.51740559]
[1757990711734,0.34,115320.0,115310.0,0.51740559]
[1757990721259,0.33993898,115320.0,115310.0,0.51740559]
[1757990724851,0.33993898,115320.0,115310.0,0.37328559]
[1757990725066,0.65751111,115320.0,115310.0,0.51740559]
[1757990725300,0.68032111,115320.0,115310.0,0.34439559]
[1757990725517,0.68159111,115320.0,115310.0,0.48847559]
[1757990726436,0.68032111,115320.0,115310.0,0.48847559]
[1757990727801,0.6801659,115320.0,115310.0,0.48847559]
[1757990733669,0.70624235,115320.0,115310.0,0.48847559]
[1757990734850,0.68343235,115320.0,115310.0,0.48847559]
[1757990735706,0.70732235,115320.0,115310.0,0.48847559]
[1757990736786,0.68343235,115320.0,115310.0,0.49157559]
[1757990737484,0.68343235,115320.0,115310.0,0.51421559]
[1757990737748,0.68343235,115320.0,115310.0,0.51111559]
[1757990740635,0.99902448,115320.0,115310.0,0.51111559]
[1757990741167,1.19634493,115320.0,115310.0,0.23174549]
[1757990741398,1.34169493,115320.0,115310.0,0.0583]
[1757990741614,1.34179493,115320.0,115310.0,0.20228]
[1757990741853,1.19771493,115320.0,115310.0,0.23164549]
[1757990742056,1.34179493,115320.0,115310.0,0.23164549]
[1757990743769,1.42097317,115320.0,115310.0,0.23164549]
[1757990745241,1.27562317,115320.0,115310.0,0.23164549]
[1757990745372,1.24627272,115320.0,115310.0,0.23164549]
[1757990746234,1.41970317,115320.0,115310.0,0.23164549]
[1757990749043,1.43330424,115320.0,115310.0,0.23164549]
[1757990750083,1.41970317,115320.0,115310.0,0.23164549]
[1757990751391,1.24627272,115320.0,115310.0,0.23164549]
[1757990752449,1.10219272,115320.0,115310.0,0.23164549]
[1757990752679,1.24631272,115320.0,115310.0,0.23164549]
[1757990753279,1.25991379,115320.0,115310.0,0.23164549]
[1757990754019,1.11579379,115320.0,115310.0,0.23164549]
[1757990754218,1.25991379,115320.0,115310.0,0.23164549]
[1757990754438,1.23602379,115320.0,115310.0,0.23164549]
[1757990754784,1.23602379,115320.0,115310.0,0.25953549]
[1757990754994,1.08992379,115320.0,115310.0,0.25953549]
[1757990761679,1.07632272,115320.0,115310.0,0.25953549]
[1757990764572,1.07632272,115320.0,115310.0,0.40361549]
[1757990764791,1.07632272,115320.0,115310.0,0.25953549]
[1757990764977,1.07632272,115320.0,115310.0,0.40361549]
[1757990766110,0.36596022,115320.0,115310.0,0.40361549]
[1757990766346,1.07632272,115320.0,115310.0,0.40361549]
[1757990769129,1.07632272,115320.0,115310.0,0.49113901]
[1757990769966,1.07828272,115320.0,115310.0,0.49113901]
[1757990770391,1.07828272,115320.0,115310.0,0.34705901]
[1757990770599,1.07828272,115320.0,115310.0,0.49113901]
[1757990771328,1.07828272,115320.0,115310.0,0.34705901]
[1757990771605,1.07828272,115320.0,115310.0,0.49113901]
[1757990774142,1.07632272,115320.0,115310.0,0.49113901]
[1757990783821,1.07632272,115320.0,115310.0,0.34705901]
[1757990784039,1.07632272,115320.0,115310.0,0.49113901]
[1757990790325,1.07830272,115320.0,115310.0,0.49113901]
[1757990790543,1.07632272,115320.0,115310.0,0.49113901]
[1757990794894,1.07632272,115320.0,115310.0,0.51626559]
[1757990799405,0.72114147,115320.0,115310.0,0.51626559]
[1757990799821,0.36586022,115320.0,115310.0,0.51626559]
[1757990800031,0.72104147,115320.0,115310.0,0.51626559]
[1757990801021,0.72104147,115320.0,115310.0,0.51726559]
[1757990802050,0.72104147,115320.0,115310.0,0.51936559]
[1757990804587,0.36586022,115320.0,115310.0,0.51936559]
[1757990804808,0.72104147,115320.0,115310.0,0.51936559]
[1757990805249,0.00024128,115330.0,115320.0,0.19855703]
[1757990805250,0.34024128,115330.0,115320.0,0.19855703]
[1757990805476,0.35542253,115330.0,115320.0,0.31615055]
[1757990805934,0.00014128,115330.0,115320.0,0.31615055]
[1757990806568,0.00014128,115330.0,115320.0,0.31815055]
[1757990807473,0.00014128,115330.0,115320.0,0.31825055]
[1757990807708,0.31562477,115330.0,115320.0,0.31825055]
[1757990807925,0.31562477,115330.0,115320.0,0.32125055]
[1757990808801,0.00014128,115330.0,115320.0,0.32125055]
[1757990809461,0.00014128,115330.0,115320.0,0.46533055]
[1757990809953,0.00014128,115330.0,115320.0,0.5310114]
[1757990813206,0.00014128,115330.0,115320.0,0.3869314]
[1757990813430,0.00014128,115330.0,115320.0,0.5309714]
[1757990822773,0.00014128,115330.0,115320.0,0.3869314]
[1757990823002,0.00014128,115330.0,115320.0,0.5309714]
[1757990823960,0.00014128,115330.0,115320.0,0.3869314]
[1757990824175,0.31760477,115330.0,115320.0,0.3847914]
[1757990824386,0.34144477,115330.0,115320.0,0.3568614]
[1757990824597,0.34144477,115330.0,115320.0,0.5009014]
[1757990824848,0.34144477,115330.0,115320.0,0.5041414]
[1757990825077,0.31760477,115330.0,115320.0,0.5277914]
[1757990825717,0.31760477,115330.0,115320.0,0.3857014]
[1757990825934,0.31760477,115330.0,115320.0,0.5277914]
[1757990826153,0.31760477,115330.0,115320.0,0.3837514]
[1757990826359,0.31760477,115330.0,115320.0,0.5277914]
[1757990826788,0.31760477,115330.0,115320.0,0.5297414]
[1757990828326,0.31562477,115330.0,115320.0,0.5297414]
[1757990829688,0.00014128,115330.0,115320.0,0.5297414]
[1757990829906,0.31562477,115330.0,115320.0,0.5297414]
[1757990833606,0.00014128,115330.0,115320.0,0.5297414]
[1757990833904,0.31562477,115330.0,115320.0,0.5297414]
[1757990837457,0.00014128,115330.0,115320.0,0.5297414]
[1757990837684,0.31562477,115330.0,115320.0,0.5297414]
[1757990840184,0.00014128,115330.0,115320.0,0.5297414]
[1757990845864,0.00014128,115330.0,115320.0,0.9297414]
[1757990847750,0.00014128,115330.0,115320.0,0.9299014]
[1757990850302,0.00014128,115330.0,115320.0,0.7857014]
[1757990850997,0.00014128,115330.0,115320.0,0.9299814]
[1757990853943,0.00014128,115330.0,115320.0,0.9966614]
[1757990854795,0.00014128,115330.0,115320.0,0.8523814]
[1757990855011,0.00014128,115330.0,115320.0,0.9966214]
[1757990857824,0.00014128,115330.0,115320.0,0.8523814]
[1757990858693,0.00014128,115330.0,115320.0,0.9966614]
[1757990860134,0.00014128,115330.0,115320.0,1.2643614]
[1757990862937,0.00014128,115330.0,115320.0,1.2643214]
[1757990866795,0.35696955,115330.0,115320.0,1.2623714]
[1757990867219,0.00212128,115330.0,115320.0,1.2644714]
[1757990867422,0.35498955,115330.0,115320.0,1.2644714]
[1757990872530,0.00014128,115330.0,115320.0,1.2644714]
[1757990873147,0.35498955,115330.0,115320.0,1.2644714]
[1757990877410,0.00014128,115330.0,115320.0,1.2644714]